{"text_format":"1","workbook":"xlsx","n_sheets":1,"sheets":["Sheet1"],"not_rendered":{"charts":0,"images":0,"macros":1,"external_links":0,"defined_names":0,"comments":0,"pivot_tables":0},"unopened":[],"bounds":{"document_bytes":16777216,"sheet_cells":100000,"rows_first":2000,"rows_last":500,"rows_between":2000,"halvings":0,"cell_chars":16384,"cell_head_chars":4096},"cells_cut":0,"cells_raw":0,"read":"whole","date_system":"1900"}

{"sheet":"Sheet1","index":0,"n_rows":495,"n_cols":9,"rows_kept":495,"cut":false,"hidden":false,"merged":[]}
["م","المحافظة","المركز ","القرية",null,"الدمج فى عمود واحد","الدمج فى عمود واحد-بدون فاصل","طريقة أخرى بدالة معرفة بالكود","طريقة رابعة بدالة معرفة بالكود(AlsaqrJoin)"]
[{"$f":"IF(B2=\"\",\"\",SUBTOTAL(3,$B$2:B2))","v":1},"الإسكندرية","سيدى بشر","المريوطية",null,{"$f":"IF(B2=\"\",\"\",CONCATENATE(B2&\" - \"&C2&\" - \"&D2))","v":"الإسكندرية - سيدى بشر - المريوطية"},{"$f":"CONCATENATE(B2, \" \",C2, \" \",D2)","v":"الإسكندرية سيدى بشر المريوطية"},{"$f":"joincels(B2:D2)","v":"الإسكندرية سيدى بشر المريوطية "},{"$f":"AlsaqrJoin(\" \",0,B2:D2)","v":"الإسكندرية سيدى بشر المريوطية"}]
[{"$f":"IF(B3=\"\",\"\",SUBTOTAL(3,$B$2:B3))","v":2},"الشرقية","بلبيس","البلاشون",null,{"$f":"IF(B3=\"\",\"\",CONCATENATE(B3&\" - \"&C3&\" - \"&D3))","v":"الشرقية - بلبيس - البلاشون"},{"$f":"CONCATENATE(B3, \" \",C3, \" \",D3)","v":"الشرقية بلبيس البلاشون"},{"$f":"joincels(B3:D3)","v":"الشرقية بلبيس البلاشون "},{"$f":"AlsaqrJoin(\" \",0,B3:D3)","v":"الشرقية بلبيس البلاشون"}]
[{"$f":"IF(B4=\"\",\"\",SUBTOTAL(3,$B$2:B4))","v":3},"الشرقية","بلبيس","كفر صقر",null,"الشرقية - بلبيس - كفر صقر","الشرقية بلبيس كفر صقر","الشرقية بلبيس كفر صقر ","الشرقية بلبيس كفر صقر"]
[{"$f":"IF(B5=\"\",\"\",SUBTOTAL(3,$B$2:B5))","v":4},"الشرقية","بلبيس","سلمنت",null,"الشرقية - بلبيس - سلمنت","الشرقية بلبيس سلمنت","الشرقية بلبيس سلمنت ","الشرقية بلبيس سلمنت"]
[{"$f":"IF(B6=\"\",\"\",SUBTOTAL(3,$B$2:B6))","v":""},null,null,null,null,"","  ","","  "]
[{"$f":"IF(B7=\"\",\"\",SUBTOTAL(3,$B$2:B7))","v":""},null,null,null,null,"","  ","","  "]
[{"$f":"IF(B8=\"\",\"\",SUBTOTAL(3,$B$2:B8))","v":""},null,null,null,null,"","  ","","  "]
[{"$f":"IF(B9=\"\",\"\",SUBTOTAL(3,$B$2:B9))","v":""},null,null,null,null,"","  ","","  "]
[{"$f":"IF(B10=\"\",\"\",SUBTOTAL(3,$B$2:B10))","v":""},null,null,null,null,"","  ","","  "]
[{"$f":"IF(B11=\"\",\"\",SUBTOTAL(3,$B$2:B11))","v":""},null,null,null,null,"","  ","","  "]
[{"$f":"IF(B12=\"\",\"\",SUBTOTAL(3,$B$2:B12))","v":""},null,null,null,null,"","  ","","  "]
[{"$f":"IF(B13=\"\",\"\",SUBTOTAL(3,$B$2:B13))","v":""},null,null,null,null,"","  ","","  "]
[{"$f":"IF(B14=\"\",\"\",SUBTOTAL(3,$B$2:B14))","v":""},null,null,null,null,"","  ","","  "]
[{"$f":"IF(B15=\"\",\"\",SUBTOTAL(3,$B$2:B15))","v":""},null,null,null,null,"","  ","","  "]
[{"$f":"IF(B16=\"\",\"\",SUBTOTAL(3,$B$2:B16))","v":""},null,null,null,null,"","  ","","  "]
[{"$f":"IF(B17=\"\",\"\",SUBTOTAL(3,$B$2:B17))","v":""},null,null,null,null,"","  ","","  "]
[{"$f":"IF(B18=\"\",\"\",SUBTOTAL(3,$B$2:B18))","v":""},null,null,null,null,"","  ","","  "]
[{"$f":"IF(B19=\"\",\"\",SUBTOTAL(3,$B$2:B19))","v":""},null,null,null,null,"","  ","","  "]
[{"$f":"IF(B20=\"\",\"\",SUBTOTAL(3,$B$2:B20))","v":""},null,null,null,null,"","  ","","  "]
[{"$f":"IF(B21=\"\",\"\",SUBTOTAL(3,$B$2:B21))","v":""},null,null,null,null,"","  ","","  "]
[{"$f":"IF(B22=\"\",\"\",SUBTOTAL(3,$B$2:B22))","v":""},null,null,null,null,"","  ","","  "]
[{"$f":"IF(B23=\"\",\"\",SUBTOTAL(3,$B$2:B23))","v":""},null,null,null,null,"","  ","","  "]
[{"$f":"IF(B24=\"\",\"\",SUBTOTAL(3,$B$2:B24))","v":""},null,null,null,null,"","  ","","  "]
[{"$f":"IF(B25=\"\",\"\",SUBTOTAL(3,$B$2:B25))","v":""},null,null,null,null,"","  ","","  "]
[{"$f":"IF(B26=\"\",\"\",SUBTOTAL(3,$B$2:B26))","v":""},null,null,null,null,"","  ","","  "]
[{"$f":"IF(B27=\"\",\"\",SUBTOTAL(3,$B$2:B27))","v":""},null,null,null,null,"","  ","","  "]
[{"$f":"IF(B28=\"\",\"\",SUBTOTAL(3,$B$2:B28))","v":""},null,null,null,null,"","  ","","  "]
[{"$f":"IF(B29=\"\",\"\",SUBTOTAL(3,$B$2:B29))","v":""},null,null,null,null,"","  ","","  "]
[{"$f":"IF(B30=\"\",\"\",SUBTOTAL(3,$B$2:B30))","v":""},null,null,null,null,"","  ","","  "]
[{"$f":"IF(B31=\"\",\"\",SUBTOTAL(3,$B$2:B31))","v":""},null,null,null,null,"","  ","","  "]
[{"$f":"IF(B32=\"\",\"\",SUBTOTAL(3,$B$2:B32))","v":""},null,null,null,null,"","  ","","  "]
[{"$f":"IF(B33=\"\",\"\",SUBTOTAL(3,$B$2:B33))","v":""},null,null,null,null,"","  ","","  "]
[{"$f":"IF(B34=\"\",\"\",SUBTOTAL(3,$B$2:B34))","v":""},null,null,null,null,"","  ","","  "]
[{"$f":"IF(B35=\"\",\"\",SUBTOTAL(3,$B$2:B35))","v":""},null,null,null,null,"","  ","","  "]
[{"$f":"IF(B36=\"\",\"\",SUBTOTAL(3,$B$2:B36))","v":""},null,null,null,null,"","  ","","  "]
[{"$f":"IF(B37=\"\",\"\",SUBTOTAL(3,$B$2:B37))","v":""},null,null,null,null,"","  ",null,"  "]
[{"$f":"IF(B38=\"\",\"\",SUBTOTAL(3,$B$2:B38))","v":""},null,null,null,null,"","  ",null,"  "]
[{"$f":"IF(B39=\"\",\"\",SUBTOTAL(3,$B$2:B39))","v":""},null,null,null,null,"","  ",null,"  "]
[{"$f":"IF(B40=\"\",\"\",SUBTOTAL(3,$B$2:B40))","v":""},null,null,null,null,"","  ",null,"  "]
[{"$f":"IF(B41=\"\",\"\",SUBTOTAL(3,$B$2:B41))","v":""},null,null,null,null,"","  ",null,"  "]
[{"$f":"IF(B42=\"\",\"\",SUBTOTAL(3,$B$2:B42))","v":""},null,null,null,null,"","  ",null,"  "]
[{"$f":"IF(B43=\"\",\"\",SUBTOTAL(3,$B$2:B43))","v":""},null,null,null,null,"","  ",null,"  "]
[{"$f":"IF(B44=\"\",\"\",SUBTOTAL(3,$B$2:B44))","v":""},null,null,null,null,"","  ",null,"  "]
[{"$f":"IF(B45=\"\",\"\",SUBTOTAL(3,$B$2:B45))","v":""},null,null,null,null,"","  ",null,"  "]
[{"$f":"IF(B46=\"\",\"\",SUBTOTAL(3,$B$2:B46))","v":""},null,null,null,null,"","  ",null,"  "]
[{"$f":"IF(B47=\"\",\"\",SUBTOTAL(3,$B$2:B47))","v":""},null,null,null,null,"","  ",null,"  "]
[{"$f":"IF(B48=\"\",\"\",SUBTOTAL(3,$B$2:B48))","v":""},null,null,null,null,"","  ",null,"  "]
[{"$f":"IF(B49=\"\",\"\",SUBTOTAL(3,$B$2:B49))","v":""},null,null,null,null,"","  ",null,"  "]
[{"$f":"IF(B50=\"\",\"\",SUBTOTAL(3,$B$2:B50))","v":""},null,null,null,null,"","  ",null,"  "]
[{"$f":"IF(B51=\"\",\"\",SUBTOTAL(3,$B$2:B51))","v":""},null,null,null,null,"","  ",null,"  "]
[{"$f":"IF(B52=\"\",\"\",SUBTOTAL(3,$B$2:B52))","v":""},null,null,null,null,"","  ",null,"  "]
[{"$f":"IF(B53=\"\",\"\",SUBTOTAL(3,$B$2:B53))","v":""},null,null,null,null,"","  ",null,"  "]
[{"$f":"IF(B54=\"\",\"\",SUBTOTAL(3,$B$2:B54))","v":""},null,null,null,null,"","  ",null,"  "]
[{"$f":"IF(B55=\"\",\"\",SUBTOTAL(3,$B$2:B55))","v":""},null,null,null,null,"","  ",null,"  "]
[{"$f":"IF(B56=\"\",\"\",SUBTOTAL(3,$B$2:B56))","v":""},null,null,null,null,"","  ",null,"  "]
[{"$f":"IF(B57=\"\",\"\",SUBTOTAL(3,$B$2:B57))","v":""},null,null,null,null,"","  ",null,"  "]
[{"$f":"IF(B58=\"\",\"\",SUBTOTAL(3,$B$2:B58))","v":""},null,null,null,null,"","  ",null,"  "]
[{"$f":"IF(B59=\"\",\"\",SUBTOTAL(3,$B$2:B59))","v":""},null,null,null,null,"","  ",null,"  "]
[{"$f":"IF(B60=\"\",\"\",SUBTOTAL(3,$B$2:B60))","v":""},null,null,null,null,"","  ",null,"  "]
[{"$f":"IF(B61=\"\",\"\",SUBTOTAL(3,$B$2:B61))","v":""},null,null,null,null,"","  ",null,"  "]
[{"$f":"IF(B62=\"\",\"\",SUBTOTAL(3,$B$2:B62))","v":""},null,null,null,null,"","  ",null,"  "]
[{"$f":"IF(B63=\"\",\"\",SUBTOTAL(3,$B$2:B63))","v":""},null,null,null,null,"","  ",null,"  "]
[{"$f":"IF(B64=\"\",\"\",SUBTOTAL(3,$B$2:B64))","v":""},null,null,null,null,"","  ",null,"  "]
[{"$f":"IF(B65=\"\",\"\",SUBTOTAL(3,$B$2:B65))","v":""},null,null,null,null,"","  ",null,"  "]
[{"$f":"IF(B66=\"\",\"\",SUBTOTAL(3,$B$2:B66))","v":""},null,null,null,null,"","  ",null,"  "]
[{"$f":"IF(B67=\"\",\"\",SUBTOTAL(3,$B$2:B67))","v":""},null,null,null,null,{"$f":"IF(B67=\"\",\"\",CONCATENATE(B67&\" - \"&C67&\" - \"&D67))","v":""},{"$f":"CONCATENATE(B67, \" \",C67, \" \",D67)","v":"  "},null,{"$f":"AlsaqrJoin(\" \",0,B67:D67)","v":"  "}]
[{"$f":"IF(B68=\"\",\"\",SUBTOTAL(3,$B$2:B68))","v":""},null,null,null,null,"","  ",null,"  "]
[{"$f":"IF(B69=\"\",\"\",SUBTOTAL(3,$B$2:B69))","v":""},null,null,null,null,"","  ",null,"  "]
[{"$f":"IF(B70=\"\",\"\",SUBTOTAL(3,$B$2:B70))","v":""},null,null,null,null,"","  ",null,"  "]
[{"$f":"IF(B71=\"\",\"\",SUBTOTAL(3,$B$2:B71))","v":""},null,null,null,null,"","  ",null,"  "]
[{"$f":"IF(B72=\"\",\"\",SUBTOTAL(3,$B$2:B72))","v":""},null,null,null,null,"","  ",null,"  "]
[{"$f":"IF(B73=\"\",\"\",SUBTOTAL(3,$B$2:B73))","v":""},null,null,null,null,"","  ",null,"  "]
[{"$f":"IF(B74=\"\",\"\",SUBTOTAL(3,$B$2:B74))","v":""},null,null,null,null,"","  ",null,"  "]
[{"$f":"IF(B75=\"\",\"\",SUBTOTAL(3,$B$2:B75))","v":""},null,null,null,null,"","  ",null,"  "]
[{"$f":"IF(B76=\"\",\"\",SUBTOTAL(3,$B$2:B76))","v":""},null,null,null,null,"","  ",null,"  "]
[{"$f":"IF(B77=\"\",\"\",SUBTOTAL(3,$B$2:B77))","v":""},null,null,null,null,"","  ",null,"  "]
[{"$f":"IF(B78=\"\",\"\",SUBTOTAL(3,$B$2:B78))","v":""},null,null,null,null,"","  ",null,"  "]
[{"$f":"IF(B79=\"\",\"\",SUBTOTAL(3,$B$2:B79))","v":""},null,null,null,null,"","  ",null,"  "]
[{"$f":"IF(B80=\"\",\"\",SUBTOTAL(3,$B$2:B80))","v":""},null,null,null,null,"","  ",null,"  "]
[{"$f":"IF(B81=\"\",\"\",SUBTOTAL(3,$B$2:B81))","v":""},null,null,null,null,"","  ",null,"  "]
[{"$f":"IF(B82=\"\",\"\",SUBTOTAL(3,$B$2:B82))","v":""},null,null,null,null,"","  ",null,"  "]
[{"$f":"IF(B83=\"\",\"\",SUBTOTAL(3,$B$2:B83))","v":""},null,null,null,null,"","  ",null,"  "]
[{"$f":"IF(B84=\"\",\"\",SUBTOTAL(3,$B$2:B84))","v":""},null,null,null,null,"","  ",null,"  "]
[{"$f":"IF(B85=\"\",\"\",SUBTOTAL(3,$B$2:B85))","v":""},null,null,null,null,"","  ",null,"  "]
[{"$f":"IF(B86=\"\",\"\",SUBTOTAL(3,$B$2:B86))","v":""},null,null,null,null,"","  ",null,"  "]
[{"$f":"IF(B87=\"\",\"\",SUBTOTAL(3,$B$2:B87))","v":""},null,null,null,null,"","  ",null,"  "]
[{"$f":"IF(B88=\"\",\"\",SUBTOTAL(3,$B$2:B88))","v":""},null,null,null,null,"","  ",null,"  "]
[{"$f":"IF(B89=\"\",\"\",SUBTOTAL(3,$B$2:B89))","v":""},null,null,null,null,"","  ",null,"  "]
[{"$f":"IF(B90=\"\",\"\",SUBTOTAL(3,$B$2:B90))","v":""},null,null,null,null,"","  ",null,"  "]
[{"$f":"IF(B91=\"\",\"\",SUBTOTAL(3,$B$2:B91))","v":""},null,null,null,null,"","  ",null,"  "]
[{"$f":"IF(B92=\"\",\"\",SUBTOTAL(3,$B$2:B92))","v":""},null,null,null,null,"","  ",null,"  "]
[{"$f":"IF(B93=\"\",\"\",SUBTOTAL(3,$B$2:B93))","v":""},null,null,null,null,"","  ",null,"  "]
[{"$f":"IF(B94=\"\",\"\",SUBTOTAL(3,$B$2:B94))","v":""},null,null,null,null,"","  ",null,"  "]
[{"$f":"IF(B95=\"\",\"\",SUBTOTAL(3,$B$2:B95))","v":""},null,null,null,null,"","  ",null,"  "]
[{"$f":"IF(B96=\"\",\"\",SUBTOTAL(3,$B$2:B96))","v":""},null,null,null,null,"","  ",null,"  "]
[{"$f":"IF(B97=\"\",\"\",SUBTOTAL(3,$B$2:B97))","v":""},null,null,null,null,"","  ",null,"  "]
[{"$f":"IF(B98=\"\",\"\",SUBTOTAL(3,$B$2:B98))","v":""},null,null,null,null,"","  ",null,"  "]
[{"$f":"IF(B99=\"\",\"\",SUBTOTAL(3,$B$2:B99))","v":""},null,null,null,null,"","  ",null,"  "]
[{"$f":"IF(B100=\"\",\"\",SUBTOTAL(3,$B$2:B100))","v":""},null,null,null,null,"","  ",null,"  "]
[{"$f":"IF(B101=\"\",\"\",SUBTOTAL(3,$B$2:B101))","v":""},null,null,null,null,"","  ",null,"  "]
[{"$f":"IF(B102=\"\",\"\",SUBTOTAL(3,$B$2:B102))","v":""},null,null,null,null,"","  ",null,"  "]
[{"$f":"IF(B103=\"\",\"\",SUBTOTAL(3,$B$2:B103))","v":""},null,null,null,null,"","  ",null,"  "]
[{"$f":"IF(B104=\"\",\"\",SUBTOTAL(3,$B$2:B104))","v":""},null,null,null,null,"","  ",null,"  "]
[{"$f":"IF(B105=\"\",\"\",SUBTOTAL(3,$B$2:B105))","v":""},null,null,null,null,"","  ",null,"  "]
[{"$f":"IF(B106=\"\",\"\",SUBTOTAL(3,$B$2:B106))","v":""},null,null,null,null,"","  ",null,"  "]
[{"$f":"IF(B107=\"\",\"\",SUBTOTAL(3,$B$2:B107))","v":""},null,null,null,null,"","  ",null,"  "]
[{"$f":"IF(B108=\"\",\"\",SUBTOTAL(3,$B$2:B108))","v":""},null,null,null,null,"","  ",null,"  "]
[{"$f":"IF(B109=\"\",\"\",SUBTOTAL(3,$B$2:B109))","v":""},null,null,null,null,"","  ",null,"  "]
[{"$f":"IF(B110=\"\",\"\",SUBTOTAL(3,$B$2:B110))","v":""},null,null,null,null,"","  ",null,"  "]
[{"$f":"IF(B111=\"\",\"\",SUBTOTAL(3,$B$2:B111))","v":""},null,null,null,null,"","  ",null,"  "]
[{"$f":"IF(B112=\"\",\"\",SUBTOTAL(3,$B$2:B112))","v":""},null,null,null,null,"","  ",null,"  "]
[{"$f":"IF(B113=\"\",\"\",SUBTOTAL(3,$B$2:B113))","v":""},null,null,null,null,"","  ",null,"  "]
[{"$f":"IF(B114=\"\",\"\",SUBTOTAL(3,$B$2:B114))","v":""},null,null,null,null,"","  ",null,"  "]
[{"$f":"IF(B115=\"\",\"\",SUBTOTAL(3,$B$2:B115))","v":""},null,null,null,null,"","  ",null,"  "]
[{"$f":"IF(B116=\"\",\"\",SUBTOTAL(3,$B$2:B116))","v":""},null,null,null,null,"","  ",null,"  "]
[{"$f":"IF(B117=\"\",\"\",SUBTOTAL(3,$B$2:B117))","v":""},null,null,null,null,"","  ",null,"  "]
[{"$f":"IF(B118=\"\",\"\",SUBTOTAL(3,$B$2:B118))","v":""},null,null,null,null,"","  ",null,"  "]
[{"$f":"IF(B119=\"\",\"\",SUBTOTAL(3,$B$2:B119))","v":""},null,null,null,null,"","  ",null,"  "]
[{"$f":"IF(B120=\"\",\"\",SUBTOTAL(3,$B$2:B120))","v":""},null,null,null,null,"","  ",null,"  "]
[{"$f":"IF(B121=\"\",\"\",SUBTOTAL(3,$B$2:B121))","v":""},null,null,null,null,"","  ",null,"  "]
[{"$f":"IF(B122=\"\",\"\",SUBTOTAL(3,$B$2:B122))","v":""},null,null,null,null,"","  ",null,"  "]
[{"$f":"IF(B123=\"\",\"\",SUBTOTAL(3,$B$2:B123))","v":""},null,null,null,null,"","  ",null,"  "]
[{"$f":"IF(B124=\"\",\"\",SUBTOTAL(3,$B$2:B124))","v":""},null,null,null,null,"","  ",null,"  "]
[{"$f":"IF(B125=\"\",\"\",SUBTOTAL(3,$B$2:B125))","v":""},null,null,null,null,"","  ",null,"  "]
[{"$f":"IF(B126=\"\",\"\",SUBTOTAL(3,$B$2:B126))","v":""},null,null,null,null,"","  ",null,"  "]
[{"$f":"IF(B127=\"\",\"\",SUBTOTAL(3,$B$2:B127))","v":""},null,null,null,null,"","  ",null,"  "]
[{"$f":"IF(B128=\"\",\"\",SUBTOTAL(3,$B$2:B128))","v":""},null,null,null,null,"","  ",null,"  "]
[{"$f":"IF(B129=\"\",\"\",SUBTOTAL(3,$B$2:B129))","v":""},null,null,null,null,"","  ",null,"  "]
[{"$f":"IF(B130=\"\",\"\",SUBTOTAL(3,$B$2:B130))","v":""},null,null,null,null,"","  ",null,"  "]
[{"$f":"IF(B131=\"\",\"\",SUBTOTAL(3,$B$2:B131))","v":""},null,null,null,null,{"$f":"IF(B131=\"\",\"\",CONCATENATE(B131&\" - \"&C131&\" - \"&D131))","v":""},{"$f":"CONCATENATE(B131, \" \",C131, \" \",D131)","v":"  "},null,{"$f":"AlsaqrJoin(\" \",0,B131:D131)","v":"  "}]
[{"$f":"IF(B132=\"\",\"\",SUBTOTAL(3,$B$2:B132))","v":""},null,null,null,null,"","  ",null,"  "]
[{"$f":"IF(B133=\"\",\"\",SUBTOTAL(3,$B$2:B133))","v":""},null,null,null,null,"","  ",null,"  "]
[{"$f":"IF(B134=\"\",\"\",SUBTOTAL(3,$B$2:B134))","v":""},null,null,null,null,"","  ",null,"  "]
[{"$f":"IF(B135=\"\",\"\",SUBTOTAL(3,$B$2:B135))","v":""},null,null,null,null,"","  ",null,"  "]
[{"$f":"IF(B136=\"\",\"\",SUBTOTAL(3,$B$2:B136))","v":""},null,null,null,null,"","  ",null,"  "]
[{"$f":"IF(B137=\"\",\"\",SUBTOTAL(3,$B$2:B137))","v":""},null,null,null,null,"","  ",null,"  "]
[{"$f":"IF(B138=\"\",\"\",SUBTOTAL(3,$B$2:B138))","v":""},null,null,null,null,"","  ",null,"  "]
[{"$f":"IF(B139=\"\",\"\",SUBTOTAL(3,$B$2:B139))","v":""},null,null,null,null,"","  ",null,"  "]
[{"$f":"IF(B140=\"\",\"\",SUBTOTAL(3,$B$2:B140))","v":""},null,null,null,null,"","  ",null,"  "]
[{"$f":"IF(B141=\"\",\"\",SUBTOTAL(3,$B$2:B141))","v":""},null,null,null,null,"","  ",null,"  "]
[{"$f":"IF(B142=\"\",\"\",SUBTOTAL(3,$B$2:B142))","v":""},null,null,null,null,"","  ",null,"  "]
[{"$f":"IF(B143=\"\",\"\",SUBTOTAL(3,$B$2:B143))","v":""},null,null,null,null,"","  ",null,"  "]
[{"$f":"IF(B144=\"\",\"\",SUBTOTAL(3,$B$2:B144))","v":""},null,null,null,null,"","  ",null,"  "]
[{"$f":"IF(B145=\"\",\"\",SUBTOTAL(3,$B$2:B145))","v":""},null,null,null,null,"","  ",null,"  "]
[{"$f":"IF(B146=\"\",\"\",SUBTOTAL(3,$B$2:B146))","v":""},null,null,null,null,"","  ",null,"  "]
[{"$f":"IF(B147=\"\",\"\",SUBTOTAL(3,$B$2:B147))","v":""},null,null,null,null,"","  ",null,"  "]
[{"$f":"IF(B148=\"\",\"\",SUBTOTAL(3,$B$2:B148))","v":""},null,null,null,null,"","  ",null,"  "]
[{"$f":"IF(B149=\"\",\"\",SUBTOTAL(3,$B$2:B149))","v":""},null,null,null,null,"","  ",null,"  "]
[{"$f":"IF(B150=\"\",\"\",SUBTOTAL(3,$B$2:B150))","v":""},null,null,null,null,"","  ",null,"  "]
[{"$f":"IF(B151=\"\",\"\",SUBTOTAL(3,$B$2:B151))","v":""},null,null,null,null,"","  ",null,"  "]
[{"$f":"IF(B152=\"\",\"\",SUBTOTAL(3,$B$2:B152))","v":""},null,null,null,null,"","  ",null,"  "]
[{"$f":"IF(B153=\"\",\"\",SUBTOTAL(3,$B$2:B153))","v":""},null,null,null,null,"","  ",null,"  "]
[{"$f":"IF(B154=\"\",\"\",SUBTOTAL(3,$B$2:B154))","v":""},null,null,null,null,"","  ",null,"  "]
[{"$f":"IF(B155=\"\",\"\",SUBTOTAL(3,$B$2:B155))","v":""},null,null,null,null,"","  ",null,"  "]
[{"$f":"IF(B156=\"\",\"\",SUBTOTAL(3,$B$2:B156))","v":""},null,null,null,null,"","  ",null,"  "]
[{"$f":"IF(B157=\"\",\"\",SUBTOTAL(3,$B$2:B157))","v":""},null,null,null,null,"","  ",null,"  "]
[{"$f":"IF(B158=\"\",\"\",SUBTOTAL(3,$B$2:B158))","v":""},null,null,null,null,"","  ",null,"  "]
[null,null,null,null,null,"","  ",null,"  "]
[null,null,null,null,null,"","  ",null,"  "]
[null,null,null,null,null,"","  ",null,"  "]
[null,null,null,null,null,"","  ",null,"  "]
[null,null,null,null,null,"","  ",null,"  "]
[null,null,null,null,null,"","  ",null,"  "]
[null,null,null,null,null,"","  ",null,"  "]
[null,null,null,null,null,"","  ",null,"  "]
[null,null,null,null,null,"","  ",null,"  "]
[null,null,null,null,null,"","  ",null,"  "]
[null,null,null,null,null,"","  ",null,"  "]
[null,null,null,null,null,"","  ",null,"  "]
[null,null,null,null,null,"","  ",null,"  "]
[null,null,null,null,null,"","  ",null,"  "]
[null,null,null,null,null,"","  ",null,"  "]
[null,null,null,null,null,"","  ",null,"  "]
[null,null,null,null,null,"","  ",null,"  "]
[null,null,null,null,null,"","  ",null,"  "]
[null,null,null,null,null,"","  ",null,"  "]
[null,null,null,null,null,"","  ",null,"  "]
[null,null,null,null,null,"","  ",null,"  "]
[null,null,null,null,null,"","  ",null,"  "]
[null,null,null,null,null,"","  ",null,"  "]
[null,null,null,null,null,"","  ",null,"  "]
[null,null,null,null,null,"","  ",null,"  "]
[null,null,null,null,null,"","  ",null,"  "]
[null,null,null,null,null,"","  ",null,"  "]
[null,null,null,null,null,"","  ",null,"  "]
[null,null,null,null,null,"","  ",null,"  "]
[null,null,null,null,null,"","  ",null,"  "]
[null,null,null,null,null,"","  ",null,"  "]
[null,null,null,null,null,"","  ",null,"  "]
[null,null,null,null,null,"","  ",null,"  "]
[null,null,null,null,null,"","  ",null,"  "]
[null,null,null,null,null,"","  ",null,"  "]
[null,null,null,null,null,"","  ",null,"  "]
[null,null,null,null,null,{"$f":"IF(B195=\"\",\"\",CONCATENATE(B195&\" - \"&C195&\" - \"&D195))","v":""},{"$f":"CONCATENATE(B195, \" \",C195, \" \",D195)","v":"  "},null,{"$f":"AlsaqrJoin(\" \",0,B195:D195)","v":"  "}]
[null,null,null,null,null,"","  ",null,"  "]
[null,null,null,null,null,"","  ",null,"  "]
[null,null,null,null,null,"","  ",null,"  "]
[null,null,null,null,null,"","  ",null,"  "]
[null,null,null,null,null,"","  ",null,"  "]
[null,null,null,null,null,"","  ",null,"  "]
[null,null,null,null,null,"","  ",null,"  "]
[null,null,null,null,null,"","  ",null,"  "]
[null,null,null,null,null,"","  ",null,"  "]
[null,null,null,null,null,"","  ",null,"  "]
[null,null,null,null,null,"","  ",null,"  "]
[null,null,null,null,null,"","  ",null,"  "]
[null,null,null,null,null,"","  ",null,"  "]
[null,null,null,null,null,"","  ",null,"  "]
[null,null,null,null,null,"","  ",null,"  "]
[null,null,null,null,null,"","  ",null,"  "]
[null,null,null,null,null,"","  ",null,"  "]
[null,null,null,null,null,"","  ",null,"  "]
[null,null,null,null,null,"","  ",null,"  "]
[null,null,null,null,null,"","  ",null,"  "]
[null,null,null,null,null,"","  ",null,"  "]
[null,null,null,null,null,"","  ",null,"  "]
[null,null,null,null,null,"","  ",null,"  "]
[null,null,null,null,null,"","  ",null,"  "]
[null,null,null,null,null,"","  ",null,"  "]
[null,null,null,null,null,"","  ",null,"  "]
[null,null,null,null,null,"","  ",null,"  "]
[null,null,null,null,null,"","  ",null,"  "]
[null,null,null,null,null,"","  ",null,"  "]
[null,null,null,null,null,"","  ",null,"  "]
[null,null,null,null,null,"","  ",null,"  "]
[null,null,null,null,null,"","  ",null,"  "]
[null,null,null,null,null,"","  ",null,"  "]
[null,null,null,null,null,"","  ",null,"  "]
[null,null,null,null,null,"","  ",null,"  "]
[null,null,null,null,null,"","  ",null,"  "]
[null,null,null,null,null,"","  ",null,"  "]
[null,null,null,null,null,"","  ",null,"  "]
[null,null,null,null,null,"","  ",null,"  "]
[null,null,null,null,null,"","  ",null,"  "]
[null,null,null,null,null,"","  ",null,"  "]
[null,null,null,null,null,"","  ",null,"  "]
[null,null,null,null,null,"","  ",null,"  "]
[null,null,null,null,null,"","  ",null,"  "]
[null,null,null,null,null,"","  ",null,"  "]
[null,null,null,null,null,"","  ",null,"  "]
[null,null,null,null,null,"","  ",null,"  "]
[null,null,null,null,null,"","  ",null,"  "]
[null,null,null,null,null,"","  ",null,"  "]
[null,null,null,null,null,"","  ",null,"  "]
[null,null,null,null,null,"","  ",null,"  "]
[null,null,null,null,null,"","  ",null,"  "]
[null,null,null,null,null,"","  ",null,"  "]
[null,null,null,null,null,"","  ",null,"  "]
[null,null,null,null,null,"","  ",null,"  "]
[null,null,null,null,null,"","  ",null,"  "]
[null,null,null,null,null,"","  ",null,"  "]
[null,null,null,null,null,"","  ",null,"  "]
[null,null,null,null,null,"","  ",null,"  "]
[null,null,null,null,null,"","  ",null,"  "]
[null,null,null,null,null,"","  ",null,"  "]
[null,null,null,null,null,"","  ",null,"  "]
[null,null,null,null,null,"","  ",null,"  "]
[null,null,null,null,null,{"$f":"IF(B259=\"\",\"\",CONCATENATE(B259&\" - \"&C259&\" - \"&D259))","v":""},{"$f":"CONCATENATE(B259, \" \",C259, \" \",D259)","v":"  "},null,{"$f":"AlsaqrJoin(\" \",0,B259:D259)","v":"  "}]
[null,null,null,null,null,"","  ",null,"  "]
[null,null,null,null,null,"","  ",null,"  "]
[null,null,null,null,null,"","  ",null,"  "]
[null,null,null,null,null,"","  ",null,"  "]
[null,null,null,null,null,"","  ",null,"  "]
[null,null,null,null,null,"","  ",null,"  "]
[null,null,null,null,null,"","  ",null,"  "]
[null,null,null,null,null,"","  ",null,"  "]
[null,null,null,null,null,"","  ",null,"  "]
[null,null,null,null,null,"","  ",null,"  "]
[null,null,null,null,null,"","  ",null,"  "]
[null,null,null,null,null,"","  ",null,"  "]
[null,null,null,null,null,"","  ",null,"  "]
[null,null,null,null,null,"","  ",null,"  "]
[null,null,null,null,null,"","  ",null,"  "]
[null,null,null,null,null,"","  ",null,"  "]
[null,null,null,null,null,null,"  ",null,"  "]
[null,null,null,null,null,null,"  ",null,"  "]
[null,null,null,null,null,null,"  ",null,"  "]
[null,null,null,null,null,null,"  ",null,"  "]
[null,null,null,null,null,null,null,null,"  "]
[null,null,null,null,null,null,null,null,"  "]
[null,null,null,null,null,null,null,null,"  "]
[null,null,null,null,null,null,null,null,"  "]
[null,null,null,null,null,null,null,null,"  "]
[null,null,null,null,null,null,null,null,"  "]
[null,null,null,null,null,null,null,null,"  "]
[null,null,null,null,null,null,null,null,"  "]
[null,null,null,null,null,null,null,null,"  "]
[null,null,null,null,null,null,null,null,"  "]
[null,null,null,null,null,null,null,null,"  "]
[null,null,null,null,null,null,null,null,"  "]
[null,null,null,null,null,null,null,null,"  "]
[null,null,null,null,null,null,null,null,"  "]
[null,null,null,null,null,null,null,null,"  "]
[null,null,null,null,null,null,null,null,"  "]
[null,null,null,null,null,null,null,null,"  "]
[null,null,null,null,null,null,null,null,"  "]
[null,null,null,null,null,null,null,null,"  "]
[null,null,null,null,null,null,null,null,"  "]
[null,null,null,null,null,null,null,null,"  "]
[null,null,null,null,null,null,null,null,"  "]
[null,null,null,null,null,null,null,null,"  "]
[null,null,null,null,null,null,null,null,"  "]
[null,null,null,null,null,null,null,null,"  "]
[null,null,null,null,null,null,null,null,"  "]
[null,null,null,null,null,null,null,null,"  "]
[null,null,null,null,null,null,null,null,"  "]
[null,null,null,null,null,null,null,null,"  "]
[null,null,null,null,null,null,null,null,"  "]
[null,null,null,null,null,null,null,null,"  "]
[null,null,null,null,null,null,null,null,"  "]
[null,null,null,null,null,null,null,null,"  "]
[null,null,null,null,null,null,null,null,"  "]
[null,null,null,null,null,null,null,null,"  "]
[null,null,null,null,null,null,null,null,"  "]
[null,null,null,null,null,null,null,null,"  "]
[null,null,null,null,null,null,null,null,"  "]
[null,null,null,null,null,null,null,null,"  "]
[null,null,null,null,null,null,null,null,"  "]
[null,null,null,null,null,null,null,null,"  "]
[null,null,null,null,null,null,null,null,"  "]
[null,null,null,null,null,null,null,null,"  "]
[null,null,null,null,null,null,null,null,{"$f":"AlsaqrJoin(\" \",0,B323:D323)","v":"  "}]
[null,null,null,null,null,null,null,null,"  "]
[null,null,null,null,null,null,null,null,"  "]
[null,null,null,null,null,null,null,null,"  "]
[null,null,null,null,null,null,null,null,"  "]
[null,null,null,null,null,null,null,null,"  "]
[null,null,null,null,null,null,null,null,"  "]
[null,null,null,null,null,null,null,null,"  "]
[null,null,null,null,null,null,null,null,"  "]
[null,null,null,null,null,null,null,null,"  "]
[null,null,null,null,null,null,null,null,"  "]
[null,null,null,null,null,null,null,null,"  "]
[null,null,null,null,null,null,null,null,"  "]
[null,null,null,null,null,null,null,null,"  "]
[null,null,null,null,null,null,null,null,"  "]
[null,null,null,null,null,null,null,null,"  "]
[null,null,null,null,null,null,null,null,"  "]
[null,null,null,null,null,null,null,null,"  "]
[null,null,null,null,null,null,null,null,"  "]
[null,null,null,null,null,null,null,null,"  "]
[null,null,null,null,null,null,null,null,"  "]
[null,null,null,null,null,null,null,null,"  "]
[null,null,null,null,null,null,null,null,"  "]
[null,null,null,null,null,null,null,null,"  "]
[null,null,null,null,null,null,null,null,"  "]
[null,null,null,null,null,null,null,null,"  "]
[null,null,null,null,null,null,null,null,"  "]
[null,null,null,null,null,null,null,null,"  "]
[null,null,null,null,null,null,null,null,"  "]
[null,null,null,null,null,null,null,null,"  "]
[null,null,null,null,null,null,null,null,"  "]
[null,null,null,null,null,null,null,null,"  "]
[null,null,null,null,null,null,null,null,"  "]
[null,null,null,null,null,null,null,null,"  "]
[null,null,null,null,null,null,null,null,"  "]
[null,null,null,null,null,null,null,null,"  "]
[null,null,null,null,null,null,null,null,"  "]
[null,null,null,null,null,null,null,null,"  "]
[null,null,null,null,null,null,null,null,"  "]
[null,null,null,null,null,null,null,null,"  "]
[null,null,null,null,null,null,null,null,"  "]
[null,null,null,null,null,null,null,null,"  "]
[null,null,null,null,null,null,null,null,"  "]
[null,null,null,null,null,null,null,null,"  "]
[null,null,null,null,null,null,null,null,"  "]
[null,null,null,null,null,null,null,null,"  "]
[null,null,null,null,null,null,null,null,"  "]
[null,null,null,null,null,null,null,null,"  "]
[null,null,null,null,null,null,null,null,"  "]
[null,null,null,null,null,null,null,null,"  "]
[null,null,null,null,null,null,null,null,"  "]
[null,null,null,null,null,null,null,null,"  "]
[null,null,null,null,null,null,null,null,"  "]
[null,null,null,null,null,null,null,null,"  "]
[null,null,null,null,null,null,null,null,"  "]
[null,null,null,null,null,null,null,null,"  "]
[null,null,null,null,null,null,null,null,"  "]
[null,null,null,null,null,null,null,null,"  "]
[null,null,null,null,null,null,null,null,"  "]
[null,null,null,null,null,null,null,null,"  "]
[null,null,null,null,null,null,null,null,"  "]
[null,null,null,null,null,null,null,null,"  "]
[null,null,null,null,null,null,null,null,"  "]
[null,null,null,null,null,null,null,null,"  "]
[null,null,null,null,null,null,null,null,{"$f":"AlsaqrJoin(\" \",0,B387:D387)","v":"  "}]
[null,null,null,null,null,null,null,null,"  "]
[null,null,null,null,null,null,null,null,"  "]
[null,null,null,null,null,null,null,null,"  "]
[null,null,null,null,null,null,null,null,"  "]
[null,null,null,null,null,null,null,null,"  "]
[null,null,null,null,null,null,null,null,"  "]
[null,null,null,null,null,null,null,null,"  "]
[null,null,null,null,null,null,null,null,"  "]
[null,null,null,null,null,null,null,null,"  "]
[null,null,null,null,null,null,null,null,"  "]
[null,null,null,null,null,null,null,null,"  "]
[null,null,null,null,null,null,null,null,"  "]
[null,null,null,null,null,null,null,null,"  "]
[null,null,null,null,null,null,null,null,"  "]
[null,null,null,null,null,null,null,null,"  "]
[null,null,null,null,null,null,null,null,"  "]
[null,null,null,null,null,null,null,null,"  "]
[null,null,null,null,null,null,null,null,"  "]
[null,null,null,null,null,null,null,null,"  "]
[null,null,null,null,null,null,null,null,"  "]
[null,null,null,null,null,null,null,null,"  "]
[null,null,null,null,null,null,null,null,"  "]
[null,null,null,null,null,null,null,null,"  "]
[null,null,null,null,null,null,null,null,"  "]
[null,null,null,null,null,null,null,null,"  "]
[null,null,null,null,null,null,null,null,"  "]
[null,null,null,null,null,null,null,null,"  "]
[null,null,null,null,null,null,null,null,"  "]
[null,null,null,null,null,null,null,null,"  "]
[null,null,null,null,null,null,null,null,"  "]
[null,null,null,null,null,null,null,null,"  "]
[null,null,null,null,null,null,null,null,"  "]
[null,null,null,null,null,null,null,null,"  "]
[null,null,null,null,null,null,null,null,"  "]
[null,null,null,null,null,null,null,null,"  "]
[null,null,null,null,null,null,null,null,"  "]
[null,null,null,null,null,null,null,null,"  "]
[null,null,null,null,null,null,null,null,"  "]
[null,null,null,null,null,null,null,null,"  "]
[null,null,null,null,null,null,null,null,"  "]
[null,null,null,null,null,null,null,null,"  "]
[null,null,null,null,null,null,null,null,"  "]
[null,null,null,null,null,null,null,null,"  "]
[null,null,null,null,null,null,null,null,"  "]
[null,null,null,null,null,null,null,null,"  "]
[null,null,null,null,null,null,null,null,"  "]
[null,null,null,null,null,null,null,null,"  "]
[null,null,null,null,null,null,null,null,"  "]
[null,null,null,null,null,null,null,null,"  "]
[null,null,null,null,null,null,null,null,"  "]
[null,null,null,null,null,null,null,null,"  "]
[null,null,null,null,null,null,null,null,"  "]
[null,null,null,null,null,null,null,null,"  "]
[null,null,null,null,null,null,null,null,"  "]
[null,null,null,null,null,null,null,null,"  "]
[null,null,null,null,null,null,null,null,"  "]
[null,null,null,null,null,null,null,null,"  "]
[null,null,null,null,null,null,null,null,"  "]
[null,null,null,null,null,null,null,null,"  "]
[null,null,null,null,null,null,null,null,"  "]
[null,null,null,null,null,null,null,null,"  "]
[null,null,null,null,null,null,null,null,"  "]
[null,null,null,null,null,null,null,null,"  "]
[null,null,null,null,null,null,null,null,{"$f":"AlsaqrJoin(\" \",0,B451:D451)","v":"  "}]
[null,null,null,null,null,null,null,null,"  "]
[null,null,null,null,null,null,null,null,"  "]
[null,null,null,null,null,null,null,null,"  "]
[null,null,null,null,null,null,null,null,"  "]
[null,null,null,null,null,null,null,null,"  "]
[null,null,null,null,null,null,null,null,"  "]
[null,null,null,null,null,null,null,null,"  "]
[null,null,null,null,null,null,null,null,"  "]
[null,null,null,null,null,null,null,null,"  "]
[null,null,null,null,null,null,null,null,"  "]
[null,null,null,null,null,null,null,null,"  "]
[null,null,null,null,null,null,null,null,"  "]
[null,null,null,null,null,null,null,null,"  "]
[null,null,null,null,null,null,null,null,"  "]
[null,null,null,null,null,null,null,null,"  "]
[null,null,null,null,null,null,null,null,"  "]
[null,null,null,null,null,null,null,null,"  "]
[null,null,null,null,null,null,null,null,"  "]
[null,null,null,null,null,null,null,null,"  "]
[null,null,null,null,null,null,null,null,"  "]
[null,null,null,null,null,null,null,null,"  "]
[null,null,null,null,null,null,null,null,"  "]
[null,null,null,null,null,null,null,null,"  "]
[null,null,null,null,null,null,null,null,"  "]
[null,null,null,null,null,null,null,null,"  "]
[null,null,null,null,null,null,null,null,"  "]
[null,null,null,null,null,null,null,null,"  "]
[null,null,null,null,null,null,null,null,"  "]
[null,null,null,null,null,null,null,null,"  "]
[null,null,null,null,null,null,null,null,"  "]
[null,null,null,null,null,null,null,null,"  "]
[null,null,null,null,null,null,null,null,"  "]
[null,null,null,null,null,null,null,null,"  "]
[null,null,null,null,null,null,null,null,"  "]
[null,null,null,null,null,null,null,null,"  "]
[null,null,null,null,null,null,null,null,"  "]
[null,null,null,null,null,null,null,null,"  "]
[null,null,null,null,null,null,null,null,"  "]
[null,null,null,null,null,null,null,null,"  "]
[null,null,null,null,null,null,null,null,"  "]
[null,null,null,null,null,null,null,null,"  "]
[null,null,null,null,null,null,null,null,"  "]
[null,null,null,null,null,null,null,null,"  "]
[null,null,null,null,null,null,null,null,"  "]